bitfinex-derivatives/quotes_BNBF0:USTF0_20250425
["timestamp","ask_amount","ask_price","bid_price","bid_amount"]
[1745614965287,0.2882274,606.22,603.17,4.57451149]
[1745614967984,1.26131108,606.24,603.17,4.57451149]
[1745614968591,0.2882274,606.23,603.17,4.57451149]
[1745614970989,1.26131108,606.24,603.17,4.57451149]
[1745614972190,0.2882274,606.23,603.17,4.57451149]
[1745614973991,1.26131108,606.24,603.17,4.57451149]
[1745614975189,0.28820353,606.23,603.17,4.57451149]
[1745614976990,1.26131108,606.24,603.17,4.57451149]
[1745614977389,0.28820353,606.22,603.17,4.57451149]
[1745614982994,1.26131108,606.24,603.17,4.57451149]
[1745614984192,0.28820353,606.23,603.17,4.57451149]
[1745614985998,1.26131108,606.24,603.17,4.57451149]
[1745614987196,0.28820353,606.23,603.17,4.57451149]
[1745614989000,1.26131108,606.24,603.17,4.57451149]
[1745614989296,0.28820353,606.22,603.17,4.57451149]
[1745614992003,1.26131108,606.24,603.17,4.57451149]
[1745614993204,0.28820353,606.23,603.17,4.57451149]
[1745614995005,1.26131108,606.24,603.17,4.57451149]
[1745614996207,0.28820353,606.23,603.17,4.57451149]
[1745614998012,1.26131108,606.24,603.17,4.57451149]
[1745614998311,0.28820353,606.22,603.17,4.57451149]
[1745615001014,1.26131108,606.24,603.17,4.57451149]
[1745615001309,0.28820353,606.21,603.17,4.57451149]
[1745615004015,1.26131108,606.24,603.17,4.57451149]
[1745615004216,0.28820353,606.2,603.17,4.57451149]
[1745615006919,1.26131108,606.24,603.17,4.57451149]
[1745615008218,0.28820353,606.23,603.17,4.57451149]
[1745615010026,1.26131108,606.24,603.17,4.57451149]
[1745615010224,0.2882274,606.22,603.17,4.57451149]
[1745615013121,1.26131108,606.24,603.17,4.57451149]
[1745615013424,0.2882274,606.21,603.17,4.57451149]
[1745615016028,1.26131108,606.24,603.17,4.57451149]
[1745615016326,0.2882274,606.2,603.17,4.57451149]
[1745615019027,1.26131108,606.24,603.17,4.57451149]
[1745615019327,0.2882274,606.19,603.17,4.57451149]
[1745615022131,1.26131108,606.24,603.17,4.57451149]
[1745615022431,0.2882274,606.18,603.17,4.57451149]
[1745615025031,1.26131108,606.24,603.17,4.57451149]
[1745615025331,0.2882274,606.17,603.17,4.57451149]
[1745615028035,1.26131108,606.24,603.17,4.57451149]
[1745615029234,0.2882274,606.23,603.17,4.57451149]
[1745615031033,1.26131108,606.24,603.17,4.57451149]
[1745615032238,0.2882274,606.23,603.17,4.57451149]
[1745615034037,1.26131108,606.24,603.17,4.57451149]
[1745615035236,0.2882274,606.23,603.17,4.57451149]
[1745615037039,1.26131108,606.24,603.17,4.57451149]
[1745615038244,0.2882274,606.23,603.17,4.57451149]
[1745615039946,1.26131108,606.24,603.17,4.57451149]
[1745615041244,0.2882274,606.23,603.17,4.57451149]
[1745615043047,1.26131108,606.24,603.17,4.57451149]
[1745615043346,0.2882274,606.22,603.17,4.57451149]
[1745615045245,0.2882274,606.22,603.17,2.50304358]
[1745615045950,1.26131108,606.24,603.17,2.50304358]
[1745615046246,0.2882274,606.21,603.17,2.50304358]
[1745615048548,0.2882274,606.21,603.17,5.74904358]
[1745615049048,1.26131108,606.24,603.17,5.74904358]
[1745615049352,0.2882274,606.2,603.17,5.74904358]
[1745615051955,1.26131108,606.24,603.17,5.74904358]
[1745615053255,0.2882274,606.23,603.17,5.74904358]
[1745615054956,1.26131108,606.24,603.17,5.74904358]
[1745615056255,0.2882274,606.23,603.17,5.74904358]
[1745615057961,1.26131108,606.24,603.17,5.74904358]
[1745615059261,0.2882274,606.23,603.17,5.74904358]
[1745615060963,1.26131108,606.24,603.17,5.74904358]
[1745615061863,0.2882274,606.23,603.17,5.74904358]
[1745615064065,1.26131108,606.24,603.17,5.74904358]
[1745615064265,0.2882274,606.22,603.17,5.74904358]
[1745615066665,0.2882274,606.22,603.17,3.67765125]
[1745615066968,1.26131108,606.24,603.17,3.67765125]
[1745615067968,0.2882274,606.23,603.17,3.67765125]
[1745615070372,0.2882274,606.23,603.17,4.98465125]
[1745615072975,1.26131108,606.24,603.17,4.98465125]
[1745615074275,0.2882274,606.23,603.17,4.98465125]
[1745615075972,1.26131108,606.24,603.17,4.98465125]
[1745615076979,1.26131108,606.24,603.17,2.91327723]
[1745615077281,0.2882274,606.23,603.17,2.91327723]
[1745615078983,1.26131108,606.24,603.17,2.91327723]
[1745615079782,1.26131108,606.24,603.17,4.48627723]
[1745615080279,0.2882274,606.23,603.17,4.48627723]
[1745615080883,0.2882274,606.23,603.17,6.25927723]
[1745615082179,1.26131108,606.24,603.17,6.25927723]
[1745615082480,0.2882274,606.22,603.17,6.25927723]
[1745615087984,1.26131108,606.24,603.17,6.25927723]
[1745615088487,0.2882274,606.23,603.17,6.25927723]
[1745615090991,1.26131108,606.24,603.17,6.25927723]
[1745615091491,0.2882274,606.23,603.17,6.25927723]
[1745615093994,1.26131108,606.24,603.17,6.25927723]
[1745615094695,0.2882274,606.23,603.17,6.25927723]
[1745615095693,0.2882274,606.23,603.17,4.18790002]
[1745615096997,1.26131108,606.24,603.17,4.18790002]
[1745615097592,0.2882274,606.23,603.17,4.18790002]
[1745615098397,0.2882274,606.23,603.17,5.37090002]
[1745615099997,1.26131108,606.24,603.17,5.37090002]
[1745615100297,0.2882274,606.22,603.17,5.37090002]
[1745615102998,1.26131108,606.24,603.17,5.37090002]
[1745615103596,0.2882274,606.23,603.17,5.37090002]
[1745615112000,1.26131108,606.24,603.17,5.37090002]
[1745615112703,1.26131108,606.24,603.17,3.2991113]
[1745615113304,0.28824889,606.23,603.17,3.2991113]
[1745615115005,1.26131108,606.24,603.17,3.2991113]
[1745615116305,0.28824889,606.23,603.17,3.2991113]
[1745615116606,0.28824889,606.23,603.17,4.8451113]
[1745615118008,1.26131108,606.24,603.17,4.8451113]
[1745615119209,0.28824889,606.23,603.17,4.8451113]
[1745615121007,1.26131108,606.24,603.17,4.8451113]
[1745615121611,0.28824889,606.23,603.17,4.8451113]
[1745615124011,1.26131108,606.24,603.17,4.8451113]
[1745615124308,0.28824889,606.22,603.17,4.8451113]
[1745615127011,1.26131108,606.24,603.17,4.8451113]
[1745615127314,0.28824889,606.21,603.17,4.8451113]
[1745615130016,1.26131108,606.24,603.17,4.8451113]
[1745615131210,0.28824889,606.23,603.17,4.8451113]
[1745615133014,1.26131108,606.24,603.17,4.8451113]
[1745615134310,0.28824889,606.23,603.17,4.8451113]
[1745615136021,1.26131108,606.24,603.17,4.8451113]
[1745615137021,0.28824889,606.23,603.17,4.8451113]
[1745615139023,1.26131108,606.24,603.17,4.8451113]
[1745615140222,0.28824889,606.23,603.17,4.8451113]
[1745615140423,0.28824889,606.23,603.17,2.77335597]
[1745615142026,1.26131108,606.24,603.17,2.77335597]
[1745615143222,0.28824889,606.23,603.17,4.47335597]
[1745615145025,1.26131108,606.24,603.17,4.47335597]
[1745615146229,0.28824889,606.23,603.17,4.47335597]
[1745615148035,1.26131108,606.24,603.17,4.47335597]
[1745615149231,0.28824889,606.23,603.17,4.47335597]
[1745615151036,1.26131108,606.24,603.17,4.47335597]
[1745615151837,0.28824889,606.23,603.17,4.47335597]
[1745615156340,0.28824889,606.23,603.17,2.40164075]
[1745615157038,1.26131108,606.24,603.17,2.40164075]
[1745615157639,0.28824889,606.23,603.17,2.40164075]
[1745615158940,0.28824889,606.23,603.17,3.72164075]
[1745615159137,0.28824889,606.23,603.17,5.42764075]
[1745615160041,1.26131108,606.24,603.17,5.42764075]
[1745615160342,0.28824889,606.22,603.17,5.42764075]
[1745615163042,1.26131108,606.24,603.17,5.42764075]
[1745615163444,0.28824889,606.23,603.17,5.42764075]
[1745615166047,1.26131108,606.24,603.17,5.42764075]
[1745615166446,1.26131108,606.24,603.17,3.3558699]
[1745615166943,0.28824889,606.23,603.17,3.3558699]
[1745615169047,1.26131108,606.24,603.17,3.3558699]
[1745615169447,1.26131108,606.24,603.17,4.7198699]
[1745615170247,0.28824889,606.23,603.17,4.7198699]
[1745615172043,1.26131108,606.24,603.17,4.7198699]
[1745615173350,0.28825366,606.23,603.17,4.7198699]
[1745615175051,1.26131108,606.24,603.17,4.7198699]
[1745615176152,0.28825366,606.23,603.17,4.7198699]
[1745615176552,0.28825366,606.23,603.17,2.64804254]
[1745615178051,1.26131108,606.24,603.17,2.64804254]
[1745615178653,0.28825366,606.23,603.17,2.64804254]
[1745615180152,0.28825366,606.23,603.17,4.06604254]
[1745615180552,0.28825366,606.23,603.17,5.42404254]
[1745615181051,1.26131108,606.24,603.17,5.42404254]
[1745615181952,0.28825366,606.23,603.17,5.42404254]
[1745615184048,1.26131108,606.24,603.17,5.42404254]
[1745615184352,0.28825366,606.22,603.17,5.42404254]
[1745615187052,1.26131108,606.24,603.17,5.42404254]
[1745615187849,0.28825366,606.23,603.17,5.42404254]
[1745615190056,1.26131108,606.24,603.17,5.42404254]
[1745615190849,0.28825366,606.23,603.17,5.42404254]
[1745615193255,1.26131108,606.24,603.17,5.42404254]
[1745615194055,0.28825366,606.23,603.17,5.42404254]
[1745615195360,0.28825366,606.23,603.17,3.35219008]
[1745615196059,1.26131108,606.24,603.17,3.35219008]
[1745615196761,0.28825366,606.23,603.17,3.35219008]
[1745615198463,0.28825366,606.23,603.17,4.71019008]
[1745615199063,1.26131108,606.24,603.17,4.71019008]
[1745615199359,0.28825366,606.22,603.17,4.71019008]
[1745615202065,1.26131108,606.24,603.17,4.71019008]
[1745615203265,0.28825366,606.23,603.17,4.71019008]
[1745615205069,1.26131108,606.24,603.17,4.71019008]
[1745615206068,0.28825366,606.23,603.17,4.71019008]
[1745615208070,1.26131108,606.24,603.17,4.71019008]
[1745615208569,0.28825366,606.23,603.17,4.71019008]
[1745615210372,0.28825366,606.23,603.17,2.63832978]
[1745615211072,1.26131108,606.24,603.17,2.63832978]
[1745615211572,0.28825366,606.23,603.17,2.63832978]
[1745615213274,0.28825366,606.23,603.17,4.36132978]
[1745615213874,0.28825366,606.23,603.17,6.14932978]
[1745615214071,1.26131108,606.24,603.17,6.14932978]
[1745615215275,0.28825366,606.23,603.17,6.14932978]
[1745615217072,1.26131108,606.24,603.17,6.14932978]
[1745615218378,0.28825366,606.23,603.17,6.14932978]
[1745615220179,1.26131108,606.24,603.17,6.14932978]
[1745615220475,0.28825366,606.22,603.17,6.14932978]
[1745615223180,1.26131108,606.24,603.17,6.14932978]
[1745615223476,0.28825366,606.21,603.17,6.14932978]
[1745615225181,0.28825366,606.21,603.17,4.07742043]
[1745615226083,1.26131108,606.24,603.17,4.07742043]
[1745615226583,0.28825366,606.23,603.17,4.07742043]
[1745615229081,1.26131108,606.24,603.17,4.07742043]
[1745615229285,1.26131108,606.24,603.17,5.95842043]
[1745615230386,0.28825366,606.23,603.17,5.95842043]
[1745615232086,1.26131108,606.24,603.17,5.95842043]
[1745615233390,0.28825366,606.23,603.17,5.95842043]
[1745615235095,1.26131108,606.24,603.17,5.95842043]
[1745615236393,0.28825366,606.23,603.17,5.95842043]
[1745615238098,1.26131108,606.24,603.17,5.95842043]
[1745615238997,0.28825366,606.23,603.17,5.95842043]
[1745615240196,0.28825366,606.23,603.17,3.88652591]
[1745615241099,1.26131108,606.24,603.17,3.88652591]
[1745615242298,0.28825366,606.23,603.17,3.88652591]
[1745615243995,0.28825366,606.23,603.17,5.21752591]
[1745615244199,1.26131108,606.24,603.17,5.21752591]
[1745615244398,0.28825366,606.22,603.17,5.21752591]
[1745615247096,1.26131108,606.24,603.17,5.21752591]
[1745615247400,0.28825366,606.23,603.17,5.21752591]
[1745615253105,1.26131108,606.24,603.17,5.21752591]
[1745615253404,0.2882656,606.22,603.17,5.21752591]
[1745615256106,1.26131108,606.24,603.17,5.21752591]
[1745615257306,0.28824173,606.23,603.17,5.21752591]
[1745615259106,1.26131108,606.24,603.17,5.21752591]
[1745615259709,0.28824173,606.23,603.17,5.21752591]
[1745615262109,1.26131108,606.24,603.17,5.21752591]
[1745615262410,0.28824173,606.22,603.17,5.21752591]
[1745615268117,1.26131108,606.24,603.17,5.21752591]
[1745615269412,0.28824173,606.23,603.17,5.21752591]
[1745615271118,1.26131108,606.24,603.17,5.21752591]
[1745615271421,0.28824173,606.22,603.17,5.21752591]
[1745615274121,1.26131108,606.24,603.17,5.21752591]
[1745615274419,0.28824173,606.21,603.17,5.21752591]
[1745615277122,1.26131108,606.24,603.17,5.21752591]
[1745615277421,0.28824173,606.2,603.17,5.21752591]
[1745615280128,1.26131108,606.24,603.17,5.21752591]
[1745615280524,0.28824173,606.19,603.17,5.21752591]
[1745615283127,1.26131108,606.24,603.17,5.21752591]
[1745615283426,0.28824173,606.18,603.17,5.21752591]
[1745615286123,1.26131108,606.24,603.17,5.21752591]
[1745615286424,0.28822979,606.17,603.17,5.21752591]
[1745615289130,1.26131108,606.24,603.17,5.21752591]
[1745615289431,0.28822979,606.16,603.17,5.21752591]
[1745615289727,1.26131108,606.24,603.17,5.21752591]
[1745615291128,0.28822979,606.23,603.17,5.21752591]
[1745615292133,1.26131108,606.24,603.17,5.21752591]
[1745615292433,0.28822979,606.22,603.17,5.21752591]
[1745615295139,1.26131108,606.24,603.17,5.21752591]
[1745615296339,0.28822979,606.23,603.17,5.21752591]
[1745615301142,1.26131108,606.24,603.17,5.21752591]
[1745615301444,0.28822979,606.22,603.17,5.21752591]
[1745615304150,1.26131108,606.24,603.17,5.21752591]
[1745615304548,0.28822979,606.21,603.17,5.21752591]
[1745615310155,1.26131108,606.24,603.17,5.21752591]
[1745615311357,0.28822979,606.23,603.17,5.21752591]
[1745615313157,1.26131108,606.24,603.17,5.21752591]
[1745615313457,0.28822979,606.22,603.17,5.21752591]
[1745615316162,1.26131108,606.24,603.17,5.21752591]
[1745615317361,0.28822979,606.23,603.17,5.21752591]
[1745615319164,1.26131108,606.24,603.17,5.21752591]
[1745615319962,0.28822979,606.23,603.17,5.21752591]
[1745615322165,1.26131108,606.24,603.17,5.21752591]
[1745615322365,0.28822979,606.22,603.17,5.21752591]
[1745615325362,0.28822979,606.21,603.17,5.21752591]
[1745615328264,1.26131108,606.24,603.17,5.21752591]
[1745615328569,0.28822979,606.2,603.17,5.21752591]
[1745615331171,1.26131108,606.24,603.17,5.21752591]
[1745615331470,0.28822979,606.19,603.17,5.21752591]
[1745615334167,1.26131108,606.24,603.17,5.21752591]
[1745615335474,0.28822979,606.23,603.17,5.21752591]
[1745615337173,1.26131108,606.24,603.17,5.21752591]
[1745615338375,0.28822979,606.23,603.17,5.21752591]
[1745615340178,1.26131108,606.24,603.17,5.21752591]
[1745615341479,0.28825128,606.23,603.17,5.21752591]
[1745615343175,1.26131108,606.24,603.17,5.21752591]
[1745615344379,0.28825128,606.23,603.17,5.21752591]
[1745615346177,1.26131108,606.24,603.17,5.21752591]
[1745615347380,0.28825128,606.23,603.17,5.21752591]
[1745615349183,1.26131108,606.24,603.17,5.21752591]
[1745615350381,0.28825128,606.23,603.17,5.21752591]
[1745615352184,1.26131108,606.24,603.17,5.21752591]
[1745615353386,0.28825128,606.23,603.17,5.21752591]
[1745615358191,1.26131108,606.24,603.17,5.21752591]
[1745615358486,0.28825128,606.22,603.17,5.21752591]
[1745615361191,1.26131108,606.24,603.17,5.21752591]
[1745615362388,0.28825128,606.23,603.17,5.21752591]
[1745615364191,1.26131108,606.24,603.17,5.21752591]
[1745615365387,0.28825128,606.23,603.17,5.21752591]
[1745615367194,1.26131108,606.24,603.17,5.21752591]
[1745615367897,0.28825128,606.23,603.17,5.21752591]
[1745615370296,1.26131108,606.24,603.17,5.21752591]
[1745615370496,0.28825128,606.22,603.17,5.21752591]
[1745615373194,1.26131108,606.24,603.17,5.21752591]
[1745615374198,0.28825128,606.23,603.17,5.21752591]
[1745615376294,1.26131108,606.24,603.17,5.21752591]
[1745615376498,0.28825128,606.22,603.17,5.21752591]
[1745615379204,1.26131108,606.24,603.17,5.21752591]
[1745615379503,0.28825128,606.21,603.17,5.21752591]
[1745615382403,1.26131108,606.24,603.17,5.21752591]
[1745615383409,0.28825128,606.23,603.17,5.21752591]
[1745615385211,1.26131108,606.24,603.17,5.21752591]
[1745615386411,0.28825128,606.23,603.17,5.21752591]
[1745615388212,1.26131108,606.24,603.17,5.21752591]
[1745615389414,0.28825128,606.23,603.17,5.21752591]
[1745615391216,1.26131108,606.24,603.17,5.21752591]
[1745615392417,0.28825128,606.23,603.17,5.21752591]
[1745615394217,1.26131108,606.24,603.17,5.21752591]
[1745615395419,0.28825128,606.23,603.17,5.21752591]
[1745615397222,1.26131108,606.24,603.17,5.21752591]
[1745615398422,0.28825128,606.23,603.17,5.21752591]
[1745615400224,1.26131108,606.24,603.17,5.21752591]
[1745615401422,0.28825128,606.23,603.17,5.21752591]
[1745615403126,1.26131108,606.24,603.17,5.21752591]
[1745615403426,0.28825128,606.22,603.17,5.21752591]
[1745615406224,1.26131108,606.24,603.17,5.21752591]
[1745615406628,0.28825128,606.23,603.17,5.21752591]
[1745615409229,1.26131108,606.24,603.17,5.21752591]
[1745615409426,0.28825128,606.22,603.17,5.21752591]
[1745615412331,1.26131108,606.24,603.17,5.21752591]
[1745615413430,0.28825128,606.23,603.17,5.21752591]
[1745615415137,1.26131108,606.24,603.17,5.21752591]
[1745615415432,0.28825128,606.22,603.17,5.21752591]
[1745615418239,1.26131108,606.24,603.17,5.21752591]
[1745615419443,0.28825128,606.23,603.17,5.21752591]
[1745615421242,1.26131108,606.24,603.17,5.21752591]
[1745615422445,0.28825128,606.23,603.17,5.21752591]
[1745615424250,1.26131108,606.24,603.17,5.21752591]
[1745615425449,0.28825128,606.23,603.17,5.21752591]
[1745615427254,1.26131108,606.24,603.17,5.21752591]
[1745615428452,0.28825128,606.23,603.17,5.21752591]
[1745615433261,1.26131108,606.24,603.17,5.21752591]
[1745615434464,0.28825128,606.23,603.17,5.21752591]
[1745615436159,1.26131108,606.24,603.17,5.21752591]
[1745615436463,1.26131108,606.24,603.17,3.88652591]
[1745615437465,0.28825128,606.23,603.17,3.88652591]
[1745615439268,1.26131108,606.24,603.17,3.88652591]
[1745615440469,0.28825128,606.23,603.17,3.88652591]
[1745615442169,1.26131108,606.24,603.17,3.88652591]
[1745615443470,0.28825128,606.23,603.17,3.88652591]
[1745615445172,1.26131108,606.24,603.17,3.88652591]
[1745615445872,0.28825128,606.23,603.17,3.88652591]
[1745615448374,1.26131108,606.24,603.17,3.88652591]
[1745615449372,0.28825128,606.23,603.17,3.88652591]
[1745615451276,1.26131108,606.24,603.17,3.88652591]
[1745615452475,0.28825128,606.23,603.17,3.88652591]
[1745615454176,1.26131108,606.24,603.17,3.88652591]
[1745615454980,0.28825128,606.23,603.17,3.88652591]
[1745615457379,1.26131108,606.24,603.17,3.88652591]
[1745615457680,0.28825128,606.22,603.17,3.88652591]
[1745615460381,1.26131108,606.24,603.17,3.88652591]
[1745615461482,0.28825128,606.23,603.17,3.88652591]
[1745615466184,1.26131108,606.24,603.17,3.88652591]
[1745615466684,0.28819876,606.23,603.17,3.88652591]
[1745615469185,1.26131108,606.24,603.17,3.88652591]
[1745615469585,0.28819876,606.23,603.17,3.88652591]
[1745615472187,1.26131108,606.24,603.17,3.88652591]
[1745615472482,0.28820831,606.22,603.17,3.88652591]
[1745615475188,1.26131108,606.24,603.17,3.88652591]
[1745615476486,0.28820831,606.23,603.17,3.88652591]
[1745615478196,1.26131108,606.24,603.17,3.88652591]
[1745615479391,0.28820831,606.23,603.17,3.88652591]
[1745615481191,1.26131108,606.24,603.17,3.88652591]
[1745615482492,0.28817251,606.23,603.17,3.88652591]
[1745615484189,1.26131108,606.24,603.17,3.88652591]
[1745615484492,0.28817251,606.22,603.17,3.88652591]
[1745615487294,1.26131108,606.24,603.17,3.88652591]
[1745615488589,0.28816535,606.23,603.17,3.88652591]
[1745615490396,1.26131108,606.24,603.17,3.88652591]
[1745615491501,0.28816535,606.23,603.17,3.88652591]
[1745615493205,1.26131108,606.24,603.17,3.88652591]
[1745615494503,0.28820114,606.23,603.17,3.88652591]
[1745615496300,1.26131108,606.24,603.17,3.88652591]
[1745615497505,0.28820114,606.23,603.17,3.88652591]
[1745615502208,1.26131108,606.24,603.17,3.88652591]
[1745615503414,0.28821785,606.23,603.17,3.88652591]
[1745615508219,1.26131108,606.24,603.17,3.88652591]
[1745615509320,0.28821785,606.23,603.17,3.88652591]
[1745615511215,1.26131108,606.24,603.17,3.88652591]
[1745615512020,0.28821785,606.23,603.17,3.88652591]
[1745615514224,1.26131108,606.24,603.17,3.88652591]
[1745615514525,0.28821785,606.22,603.17,3.88652591]
[1745615517226,1.26131108,606.24,603.17,3.88652591]
[1745615517726,0.28821785,606.23,603.17,3.88652591]
[1745615520221,1.26131108,606.24,603.17,3.88652591]
[1745615520727,0.28821785,606.23,603.17,3.88652591]
[1745615523530,0.28821785,606.22,603.17,3.88652591]
[1745615526234,1.26131108,606.24,603.17,3.88652591]
[1745615527535,0.28825366,606.23,603.17,3.88652591]
[1745615532238,1.26131108,606.24,603.17,3.88652591]
[1745615532538,0.28826321,606.22,603.17,3.88652591]
[1745615535239,1.26131108,606.24,603.17,3.88652591]
[1745615535539,0.28826321,606.21,603.17,3.88652591]
[1745615538238,1.26131108,606.24,603.17,3.88652591]
[1745615538539,0.28826321,606.2,603.17,3.88652591]
[1745615541241,1.26131108,606.24,603.17,3.88652591]
[1745615542441,0.28826321,606.23,603.17,3.88652591]
[1745615544243,1.26131108,606.24,603.17,3.88652591]
[1745615545439,0.28826321,606.23,603.17,3.88652591]
[1745615547243,1.26131108,606.24,603.17,3.88652591]
[1745615548543,0.28826321,606.23,603.17,3.88652591]
[1745615553246,1.26131108,606.24,603.17,3.88652591]
[1745615553550,0.28826321,606.22,603.17,3.88652591]
[1745615556254,1.26131108,606.24,603.17,3.88652591]
[1745615556754,0.28826321,606.21,603.17,3.88652591]
[1745615559257,1.26131108,606.24,603.17,3.88652591]
[1745615559654,0.28826321,606.23,603.17,3.88652591]
[1745615562261,1.26131108,606.24,603.17,3.88652591]
[1745615563464,0.28826321,606.23,603.17,3.88652591]
[1745615565266,1.26131108,606.24,603.17,3.88652591]
[1745615566566,0.28826321,606.23,603.17,3.88652591]
[1745615568466,1.26131108,606.24,603.17,3.88652591]
[1745615569367,0.28826321,606.23,603.17,3.88652591]
[1745615571264,1.26131108,606.24,603.17,3.88652591]
[1745615571562,0.28826321,606.22,603.17,3.88652591]
[1745615574263,1.26131108,606.24,603.17,3.88652591]
[1745615574562,0.28826321,606.21,603.17,3.88652591]
[1745615575967,0.28826321,606.21,603.17,1.81435535]
[1745615577270,1.26131108,606.24,603.17,1.81435535]
[1745615577871,0.28826321,606.23,603.17,1.81435535]
[1745615579272,0.28826321,606.23,603.17,3.98035535]
[1745615579874,0.28826321,606.23,603.17,5.60435535]
[1745615580273,1.26131108,606.24,603.17,5.60435535]
[1745615581474,0.28826321,606.23,603.17,5.60435535]
[1745615583275,1.26131108,606.24,603.17,5.60435535]
[1745615584477,0.28826321,606.23,603.17,5.60435535]
[1745615585978,0.28826321,606.23,603.17,3.53219952]
[1745615588478,0.28826321,606.23,603.17,5.37319952]
[1745615589279,1.26131108,606.24,603.17,5.37319952]
[1745615589983,0.28826321,606.23,603.17,5.37319952]
[1745615595285,1.26131108,606.24,603.17,5.37319952]
[1745615596586,0.28825844,606.23,603.17,5.37319952]
[1745615598283,1.26131108,606.24,603.17,5.37319952]
[1745615598987,0.28825844,606.23,603.17,5.37319952]
[1745615604286,1.26131108,606.24,603.17,5.37319952]
[1745615604689,0.28825844,606.22,603.17,5.37319952]
[1745615607294,1.26131108,606.24,603.17,5.37319952]
[1745615607695,0.28825844,606.23,603.17,5.37319952]
[1745615609294,0.28825844,606.23,603.17,3.3010251]
[1745615610297,1.26131108,606.24,603.17,3.3010251]
[1745615610594,0.28825844,606.22,603.17,3.3010251]
[1745615613196,0.28825844,606.22,603.17,4.7050251]
[1745615616302,1.26131108,606.24,603.17,4.7050251]
[1745615616803,0.28825844,606.23,603.17,4.7050251]
[1745615619305,1.26131108,606.24,603.17,4.7050251]
[1745615619701,0.28825844,606.22,603.17,4.7050251]
[1745615622309,1.26131108,606.24,603.17,4.7050251]
[1745615622609,0.28825844,606.21,603.17,4.7050251]
[1745615624208,0.28825844,606.21,603.17,2.63285788]
[1745615626611,0.28825844,606.21,603.17,4.68185788]
[1745615628306,1.26131108,606.24,603.17,4.68185788]
[1745615629514,0.28826321,606.23,603.17,4.68185788]
[1745615634318,1.26131108,606.24,603.17,4.68185788]
[1745615634617,0.28826799,606.22,603.17,4.68185788]
[1745615637319,1.26131108,606.24,603.17,4.68185788]
[1745615637620,0.28826799,606.21,603.17,4.68185788]
[1745615640621,0.28826799,606.21,603.17,3.453]
[1745615643324,1.26131108,606.24,603.17,3.453]
[1745615643925,0.28830859,606.23,603.17,3.453]
[1745615646320,1.26131108,606.24,603.17,3.453]
[1745615646520,0.28835398,606.22,603.17,3.453]
[1745615647225,0.28835398,606.22,603.17,2.049]
[1745615649329,1.26131108,606.24,603.17,2.049]
[1745615650131,0.28834203,606.23,603.17,2.049]
[1745615652331,1.26131108,606.24,603.17,2.049]
[1745615653533,0.28834203,606.23,603.17,2.049]
[1745615655335,1.26131108,606.24,603.17,2.049]
[1745615656530,0.28834203,606.23,603.17,2.049]
[1745615658334,1.26131108,606.24,603.17,2.049]
[1745615659534,0.28834203,606.23,603.17,2.049]
[1745615661331,1.26131108,606.24,603.17,2.049]
[1745615661635,0.28834203,606.22,603.17,2.049]
[1745615664336,1.26131108,606.24,603.17,2.049]
[1745615664639,0.28834203,606.21,603.17,2.049]
[1745615667338,1.26131108,606.24,603.17,2.049]
[1745615668534,0.28834203,606.23,603.17,2.049]
[1745615670341,1.26131108,606.24,603.17,2.049]
[1745615671141,0.28834203,606.23,603.17,2.049]
[1745615673347,1.26131108,606.24,603.17,2.049]
[1745615674647,0.28836115,606.23,603.17,2.049]
[1745615676348,1.26131108,606.24,603.17,2.049]
[1745615677547,0.28836115,606.23,603.17,2.049]
[1745615677750,0.28836115,606.23,602.9,1.25912629]
[1745615679349,1.26131108,606.24,602.9,1.25912629]
[1745615680544,0.28837907,606.23,602.9,1.25912629]
[1745615682351,1.26131108,606.24,602.9,1.25912629]
[1745615683552,0.28837907,606.23,602.9,1.25912629]
[1745615685356,1.26131108,606.24,602.9,1.25912629]
[1745615686457,0.28837907,606.23,602.9,1.25912629]
[1745615688362,1.26131108,606.24,602.9,1.25912629]
[1745615689558,0.28837907,606.23,602.9,1.25912629]
[1745615691361,1.26131108,606.24,602.9,1.25912629]
[1745615692561,0.28837907,606.23,602.9,1.25912629]
[1745615694363,1.26131108,606.24,602.9,1.25912629]
[1745615694862,0.28837907,606.23,602.9,1.25912629]
[1745615697361,1.26131108,606.24,602.9,1.25912629]
[1745615698265,0.28837907,606.23,602.9,1.25912629]
[1745615699367,0.28837907,606.23,602.88,3.05794917]
[1745615701266,1.26131108,606.24,602.88,3.05794917]
[1745615701570,0.28838146,606.22,602.88,3.05794917]
[1745615703375,1.26131108,606.24,602.88,3.05794917]
[1745615704171,0.28838146,606.23,602.88,3.05794917]
[1745615707077,0.28838146,606.23,602.88,2.122]
[1745615709379,1.26131108,606.24,602.88,2.122]
[1745615710076,0.28838146,606.23,602.88,2.122]
[1745615712481,1.26131108,606.24,602.88,2.122]
[1745615713583,0.2883958,606.23,602.88,2.122]
[1745615713782,0.2883958,606.23,602.88,0.04841119]
[1745615715380,1.26131108,606.24,602.88,0.04841119]
[1745615716086,0.28840177,606.23,602.88,0.04841119]
[1745615716985,0.28840177,606.23,602.83,1.845]
[1745615721385,1.26131108,606.24,602.83,1.845]
[1745615722590,0.28840177,606.23,602.83,1.845]
[1745615723292,0.28840177,606.23,602.83,3.425]